[Event "Slovakia Open 2022"]
[Site "Bratislava"]
[Date "2022.09.30"]
[Round "3.2"]
[White "Pasti, Aron"]
[Black "Stocek, Jiri"]
[Result "0-1"]
[ECO "B66"]
[WhiteElo "2350"]
[BlackElo "2559"]
[Annotator "TA"]
[PlyCount "62"]
[EventDate "2022.09.30"]
[EventCountry "SVK"]
[SourceTitle "playchess.com"]
[Source "ChessBase"]
[SourceQuality "1"]
[TimeControl "2700+10"]

{[%evp 22,62,61,47,47,46,70,62,69,40,35,7,19,0,-4,-43,31,0,76,47,133,18,27,22,31,0,0,0,0,-119,-61,-574,-213,-712,-755,-29994,-29989,-29989,-29990,-29990,-29990,-29991,-29984]} 1. e4 {[%emt 0:00:13]} c5 {[%emt 0:00:10]} 2. Nf3 {[%emt 0:00:02]} d6 {[%emt 0:00:27]} 3. d4 {[%emt 0:00:02]} cxd4 {[%emt 0:00:02]} 4. Nxd4 {[%emt 0:00:03]} Nf6 {[%emt 0:00:03]} 5. Nc3 {[%emt 0:00:02]} Nc6 {[%emt 0:02:16]} 6. Bg5 {[%emt 0:00:02]} e6 {[%emt 0:00:04]} 7. Qd2 {[%emt 0:02:56]} a6 {[%emt 0:00:20]} 8. O-O-O {[%emt 0:01:07]} Be7 {[%emt 0:00:18]} 9. f4 {[%emt 0:03:31][%cal Bf2f4,Bf4f5][%mdl 32]} Nxd4 {[%emt 0:01:29]} 10. Qxd4 {[%emt 0:00:13]} b5 {[%emt 0:00:03]} 11. Bxf6 {[%emt 0:02:55]} gxf6 {[%emt 0:00:06]} 12. f5 {[%emt 0:00:52]} Qc7 $1 {[%emt 0:01:17] 12...Qc7 is better than 12...Qa5. B66: Sicilian: Richter-Rauzer: 7...a6 8 0-0-0 h6.} 13. Kb1 {[%emt 0:06:00]} Qc5 {[%emt 0:02:36]} 14. Qd2 {[%emt 0:01:44]} Bb7 {[%emt 0:04:12] White is slightly better.} 15. a3 {[%emt 0:02:46] [#]} (15. Bd3 $5 {[%cal Rd2h6]}) 15... Bc6 $146 {[%emt 0:01:48]} ({Predecessor:} 15... O-O-O 16. g3 d5 17. exd5 Bxd5 18. Nxd5 Rxd5 19. Bd3 h5 20. Qg2 Kb8 21. Be4 Rd6 {½-½ (51) Greig,G-Knobel,R ICCF corr 1998}) 16. fxe6 {[%emt 0:05:40]} fxe6 {[%emt 0:00:07]} 17. Ne2 {[%emt 0:01:05]} Bxe4 {[%emt 0:03:09]} 18. Nf4 {[%emt 0:00:36]} (18. Ng3 $5 {[%cal Rg3e4]} f5 19. Bd3 Bxd3 20. Qxd3 $17) 18... Qf5 {[%emt 0:01:51]} (18... Qe5 $15) 19. g3 {[%emt 0:04:19][%mdl 1024] [#] Bh3 is the strong threat. White has compensation.} Rc8 {[%emt 0:02:11]} (19... Bxh1 $11 20. Bh3 Qe4 21. Nxe6 h5) 20. Bh3 {[%emt 0:01:55]} Qe5 {[%emt 0:00:39]} (20... Bxc2+ $2 21. Ka1 Qe5 22. Rc1 $18) (20... Qc5 $1 $14) 21. Nd3 {[%emt 0:00:10]} (21. Bxe6 $16 Rxc2 22. Qxc2 Bxc2+ 23. Kxc2) 21... Qd5 $11 {[%emt 0:01:11]} 22. Rhe1 {[%emt 0:01:08][%cal Oe1e4] Threatens to win with Rxe4!} f5 {[%emt 0:01:52]} 23. Qh6 {[%emt 0:04:37]} (23. Nf4 $5 {[%cal Rf4d5]} Qe5 24. Rxe4 fxe4 25. Bxe6 $16) 23... Rf8 $1 $36 {[%emt 0:03:35][%mdl 2048] Black is more active.} 24. Rd2 {[%emt 0:03:37]} Bf6 {[%emt 0:00:53]} 25. Ka1 {[%emt 0:01:17]} (25. g4 $11 {remains equal.}) 25... Ke7 {[%emt 0:02:01]} (25... Rf7 $17 26. Bf1 Bg7) 26. Ree2 $2 {[%emt 0:01:39][%mdl 8192] Now White is beyond hope.} (26. g4 $15) 26... Qd4 $2 {[%emt 0:01:04] Active counter play!} (26... Rc3 {( -> ...Rxa3+)} 27. Kb1 {[#]} (27. bxc3 $2 Qc4 $19) 27... Rxa3 $3 {[%mdl 512]}) 27. c3 {[%emt 0:00:55]} (27. Bg2 Rc3 28. Kb1 Rxd3 29. cxd3 Bxd3+ 30. Rxd3 Qxd3+ 31. Rc2) 27... Rxc3 $1 $19 {[%emt 0:01:55]} 28. Bxf5 {[%emt 0:00:13]} Bxf5 {[%emt 0:00:36] This bishop pair is nice. Black mates.} 29. bxc3 {[%emt 0:00:06]} Qxc3+ {[%emt 0:00:07]} 30. Ka2 {[%emt 0:00:03]} Qc4+ {[%emt 0:00:28]} 31. Kb1 {[%emt 0:00:02]} Qb3+ {[%emt 0:02:29] Weighted Error Value: White=0.84/Black=0.46} 0-1

[Event "Slovakia Open 2022"]
[Site "Bratislava"]
[Date "2022.09.30"]
[Round "3.3"]
[White "Heberla, Bartlomiej"]
[Black "Kostolansky, Sebastian Lukas"]
[Result "1-0"]
[ECO "E06"]
[WhiteElo "2568"]
[BlackElo "2398"]
[Annotator "TA"]
[PlyCount "71"]
[EventDate "2022.09.30"]
[EventCountry "SVK"]
[SourceTitle "playchess.com"]
[Source "ChessBase"]
[SourceQuality "1"]
[TimeControl "2700+10"]

{[%evp 14,71,17,20,15,0,65,40,40,45,70,-15,20,9,25,37,29,16,66,60,91,90,252,245,250,253,251,252,252,252,252,252,245,244,247,244,279,262,261,290,291,277,271,270,479,454,531,462,629,587,729,721,881,862,860,853,1559,1529,1322,1286]} 1. d4 {[%emt 0:06:00]} Nf6 {[%emt 0:00:04]} 2. Nf3 {[%emt 0:00:02]} e6 {[%emt 0:02:32]} 3. c4 {[%emt 0:00:03]} d5 {[%emt 0:00:10]} 4. g3 {[%emt 0:00:01]} Be7 {[%emt 0:00:13]} 5. Bg2 {[%emt 0:00:04]} O-O {[%emt 0:00:03]} 6. Qc2 {[%emt 0:02:17]} dxc4 {[%emt 0:01:31]} 7. Qxc4 {[%emt 0:00:03]} a6 {[%emt 0:00:21]} 8. Qc2 {[%emt 0:00:19]} b5 {[%emt 0:04:28] E06: Closed Catalan: Early deviations.} 9. Ne5 {[%emt 0:02:17]} Nd5 {[%emt 0:08:35]} ({But not} 9... Qxd4 10. Bxa8 Qxe5 11. Bf4 $16) (9... Ra7 $11) 10. O-O {[%emt 0:01:17]} Bb7 {[%emt 0:00:22] White is slightly better.} 11. Bd2 {[%emt 0:00:53] [#]} Bf6 $146 {[%emt 0:08:36][%cal Oc7c5]} ({Predecessor:} 11... Qd6 12. Rc1 c5 13. Qxc5 Qxe5 14. Qxe7 Qxd4 15. Qxb7 Ra7 16. Qc8 Qxb2 17. Bxd5 Qxa1 18. Bb3 Nd7 19. Bb4 {1-0 (19) Commercon,S (2214)-Dudek,R (2240) Germany 2016}) 12. Rc1 {[%emt 0:02:39] White has more active pieces.} (12. e4 $14 Nb6 13. Be3) 12... Bxe5 {[%emt 0:06:39]} (12... c5 $5) 13. dxe5 {[%emt 0:00:03]} Nc6 $1 {[%emt 0:00:47]} 14. Nc3 {[%emt 0:11:22][%cal Bb1c3,Bc3e4,Be4c5,Bc5b7][%mdl 32]} Nxe5 {[%emt 0:05:01]} 15. Ne4 {[%emt 0:00:02]} Nc4 {[%emt 0:02:04]} (15... Nd7 $11) 16. Be1 {[%emt 0:00:43]} Rc8 {[%emt 0:02:04]} 17. Nc5 {[%emt 0:02:20]} Nde3 $2 {[%emt 0:03:33] This costs Black the game.} 18. Nxb7 $18 {[%emt 0:00:29]} Nxc2 {[%emt 0:00:02]} 19. Nxd8 {[%emt 0:00:02]} Nxe1 {[%emt 0:00:29]} 20. Nc6 {[%emt 0:00:04] [#] aiming for Ne7+.} Nxg2 {[%emt 0:00:01]} 21. Ne7+ {[%emt 0:00:06]} Kh8 {[%emt 0:00:01][%cal Oc8d8]} 22. Nxc8 {[%emt 0:00:01]} Rxc8 {[%emt 0:00:58]} 23. Kxg2 {[%emt 0:00:02]} Nxb2 {[%emt 0:00:01][%mdl 4096] Endgame KRR-KRN} 24. Rc6 {[%emt 0:00:02]} g6 {[%emt 0:00:16]} 25. Rxa6 {[%emt 0:01:03]} c6 {[%emt 0:00:13]} 26. Rc1 {[%emt 0:01:45]} Nc4 {[%emt 0:00:02]} 27. Ra7 {[%emt 0:00:06]} Kg7 {[%emt 0:00:02]} 28. a4 {[%emt 0:00:26][%cal Ba2a4,Ba4a5,Ba5a6][%mdl 32] Strongly threatening a5.} Nd6 $2 {[%emt 0:00:39]} (28... Kf6 29. Rc3 h5 30. axb5 cxb5 31. Rf3+ Ke5 32. Raxf7 Rb8) 29. Rd1 {[%emt 0:00:51] White is clearly winning.} Nc4 {[%emt 0:00:00]} 30. Rdd7 {[%emt 0:00:48]} Ne5 {[%emt 0:00:10]} 31. Rdb7 {[%emt 0:00:04]} Rf8 {[%emt 0:00:09]} 32. a5 {[%emt 0:00:15]} g5 {[%emt 0:00:09]} 33. a6 {[%emt 0:01:05]} Nc4 {[%emt 0:00:02]} 34. Rc7 {[%emt 0:00:24]} Na5 {[%emt 0:00:03] [#]} 35. Rxf7+ $3 {[%emt 0:04:00][%mdl 512]} Rxf7 {[%emt 0:00:22]} 36. Rxf7+ {[%emt 0:00:01] Weighted Error Value: White=0.16 (very precise) /Black=0.47} 1-0

[Event "Slovakia Open 2022"]
[Site "Bratislava"]
[Date "2022.09.30"]
[Round "3.4"]
[White "Rakhmangulova, Anastasiya"]
[Black "Kraus, Tomas"]
[Result "1/2-1/2"]
[ECO "C41"]
[WhiteElo "2244"]
[BlackElo "2479"]
[Annotator "TA"]
[PlyCount "34"]
[EventDate "2022.09.30"]
[EventCountry "SVK"]
[SourceTitle "playchess.com"]
[Source "ChessBase"]
[SourceQuality "1"]
[TimeControl "2700+10"]

{[%evp 12,34,21,25,35,34,72,64,72,70,85,14,15,11,24,14,12,20,28,0,27,16,30,6,53]} 1. e4 {[%emt 0:00:04]} d6 {[%emt 0:00:01]} 2. d4 {[%emt 0:00:11]} Nf6 {[%emt 0:00:02]} 3. Nc3 {[%emt 0:00:01]} e5 {[%emt 0:00:10]} 4. Nf3 {[%emt 0:00:08]} Nbd7 {[%emt 0:00:00]} 5. Bc4 {[%emt 0:00:02]} Be7 {[%emt 0:00:00]} 6. a4 {[%emt 0:00:02]} O-O {[%emt 0:00:00]} 7. O-O {[%emt 0:00:02][%cal Bh1f1,Bf1d1,Bd1d5][%mdl 32]} a6 {[%emt 0:00:45] C41: Philidor Defence.} 8. a5 {[%emt 0:00:28]} b5 {[%emt 0:04:36] The modern move.} 9. axb6 $1 {[%emt 0:01:18]} cxb6 {[%emt 0:01:35] White is slightly better.} 10. Qe2 {[%emt 0:00:11] White has more active pieces. The black rooks are badly placed. is the legacy move (10.Re1).} Bb7 {[%emt 0:00:57]} 11. dxe5 {[%emt 0:03:41]} ({Don't play} 11. Bxa6 Nb8 12. Bxb7 Rxa1 $11) (11. Rxa6 $16 Bxa6 12. Bxa6) 11... dxe5 $11 {[%emt 0:01:01]} 12. Rd1 {[%emt 0:00:27] [#] Hoping for Nxe5.} (12. Bxa6 Nc5 13. Bxb7 (13. Rd1 Qb8 $15) 13... Rxa1 $15) 12... Qc7 $146 {[%emt 0:08:10]} ({Predecessor:} 12... b5 13. Bd5 Qc7 14. Bxb7 Qxb7 15. Bg5 Rfe8 16. Bxf6 Nxf6 17. Nd5 Nxd5 18. Rxd5 f6 {1-0 (81) Nakamura,H (2736)-Bortnyk,O (2604) Chess.com INT 2022}) 13. Bg5 {[%emt 0:03:20]} ({Much weaker is} 13. Bxa6 Nc5 14. Bxb7 Rxa1 $15) 13... b5 {[%emt 0:02:20]} 14. Bxf6 {[%emt 0:00:03]} Nxf6 {[%emt 0:01:00]} 15. Bd5 {[%emt 0:00:25]} Nxd5 {[%emt 0:06:13]} 16. Nxd5 {[%emt 0:00:03]} Bxd5 {[%emt 0:00:01]} 17. Rxd5 {[%emt 0:00:08]} Bf6 {[%emt 0:00:20] Weighted Error Value: White=0.13 (very precise) /Black=0.13 (very precise)} (17... f6 $11) 1/2-1/2

[Event "Slovakia Open 2022"]
[Site "Bratislava"]
[Date "2022.09.30"]
[Round "3.5"]
[White "Klabis, Rokas"]
[Black "Panko, Radoslav"]
[Result "1-0"]
[ECO "C00"]
[WhiteElo "2396"]
[BlackElo "1996"]
[Annotator "TA"]
[PlyCount "45"]
[EventDate "2022.09.30"]
[EventCountry "SVK"]
[SourceTitle "playchess.com"]
[Source "ChessBase"]
[SourceQuality "1"]
[TimeControl "2700+10"]

{[%evp 9,45,0,26,38,35,14,40,17,43,41,84,81,86,70,225,160,165,93,91,93,97,79,107,116,847,822,913,889,920,910,1010,989,2129,2054,2040,2028,29993,29994]} 1. e4 {[%emt 0:00:04]} e6 {[%emt 0:00:02]} 2. d3 {[%emt 0:00:03]} d5 {[%emt 0:00:02]} 3. Nd2 {[%emt 0:00:01]} Nf6 {[%emt 0:00:02]} 4. Ngf3 {[%emt 0:00:02]} b6 {[%emt 0:00:10]} 5. c3 {[%emt 0:01:07]} dxe4 {[%emt 0:00:18]} 6. dxe4 {[%emt 0:00:01] C00: French: Unusual White 2nd moves.} Bb7 {[%emt 0:00:02]} 7. Qc2 {[%emt 0:00:02] [#]} a5 $146 {[%emt 0:00:34]} ({Predecessor:} 7... Nc6 8. Be2 a5 9. a4 e5 10. O-O Bc5 11. Nc4 Qe7 12. Ne3 g6 13. Nd5 Nxd5 14. exd5 {1-0 (29) Bodnaruk,A (2411)-Vargas,G (2170) Chess.com INT 2020}) 8. Bb5+ {[%emt 0:00:07] White is slightly better.} Nfd7 {[%emt 0:01:17]} 9. O-O {[%emt 0:00:07]} Ba6 {[%emt 0:00:08]} 10. Bxa6 {[%emt 0:00:17] White is more active.} Nxa6 {[%emt 0:00:12]} 11. Rd1 {[%emt 0:00:04]} Qe7 $2 {[%emt 0:00:14]} (11... Qc8 $14) 12. e5 {[%emt 0:00:41]} Qc5 {[%emt 0:00:42]} 13. Qe4 {[%emt 0:00:29] Prevents Qc6.} (13. Nb3 $18 Qc4 14. Nbd4) 13... Qd5 $16 {[%emt 0:01:26]} 14. Qe2 $36 {[%emt 0:05:48][%mdl 2048] Black is under strong pressure.} Nac5 {[%emt 0:01:03] Against Ne4} 15. Nb3 {[%emt 0:00:06]} Qe4 {[%emt 0:02:53] [#]} 16. Be3 $1 {[%emt 0:05:15]} c6 $2 {[%emt 0:02:55][%mdl 8192]} (16... Be7 $16) 17. Rd4 $18 {[%emt 0:00:46]} Qf5 {[%emt 0:00:34]} 18. g4 {[%emt 0:08:45]} Qg6 {[%emt 0:01:04]} 19. Nh4 {[%emt 0:00:07]} Nxb3 {[%emt 0:01:52]} 20. axb3 {[%emt 0:00:02]} c5 {[%emt 0:01:01]} 21. Rxd7 {[%emt 0:00:14] [#] Qb5 would kill now.} Qe4 {[%emt 0:00:30]} 22. Qb5 {[%emt 0:00:10] Intending Rd5+ and mate.} Qxg4+ {[%emt 0:00:40]} 23. Ng2 {[%emt 0:00:02] Weighted Error Value: White=0.15 (very precise) /Black=0.73} 1-0

[Event "Slovakia Open 2022"]
[Site "Bratislava"]
[Date "2022.09.30"]
[Round "3.7"]
[White "Mikrut, Dariusz"]
[Black "Nemsak, Denis"]
[Result "1-0"]
[ECO "A81"]
[WhiteElo "2316"]
[BlackElo "2012"]
[Annotator "TA"]
[PlyCount "45"]
[EventDate "2022.09.30"]
[EventCountry "SVK"]
[SourceTitle "playchess.com"]
[Source "ChessBase"]
[SourceQuality "1"]
[TimeControl "2700+10"]

{[%evp 10,45,15,20,16,2,0,1,3,4,0,20,43,35,51,10,81,49,86,75,127,127,118,118,122,131,332,334,513,496,543,471,808,659,1547,1538,1492,1479]} 1. d4 {[%emt 0:00:03]} f5 {[%emt 0:00:24]} 2. g3 {[%emt 0:00:03]} Nf6 {[%emt 0:00:02]} 3. Bg2 {[%emt 0:00:10]} g6 {[%emt 0:00:02]} 4. c3 {[%emt 0:00:00]} Bg7 {[%emt 0:00:02]} 5. Qb3 {[%emt 0:00:03]} Nc6 {[%emt 0:00:04]} 6. Nd2 {[%emt 0:00:00]} (6. Bg5 {feels hotter.} e6 7. Nh3 O-O 8. Nf4) 6... d5 {[%emt 0:00:12] A81: Dutch Defence: 2 g3.} 7. Nh3 {[%emt 0:01:03]} e5 {[%emt 0:00:11]} 8. dxe5 {[%emt 0:00:05]} Nxe5 {[%emt 0:00:01] The position is equal.} 9. Nf4 {[%emt 0:00:02]} c6 {[%emt 0:00:04]} 10. c4 {[%emt 0:00:52][%cal Rc4d5] [#]} dxc4 $146 {[%emt 0:01:55]} ({Predecessor:} 10... d4 11. h4 O-O 12. c5+ Rf7 13. Nc4 Nxc4 14. Qxc4 Ng4 15. O-O Qf6 16. Rb1 Bd7 {1-0 (31) Hoang,T (2420)-Boric,E (2235) Bled 2002}) 11. Nxc4 {[%emt 0:00:15]} Ne4 {[%emt 0:03:54]} 12. O-O {[%emt 0:01:00] [#] Threatens to win with Bxe4.} Qe7 {[%emt 0:00:19]} (12... Nxc4 $1 $11 13. Qxc4 Qd4) 13. Nxe5 {[%emt 0:06:51]} Qxe5 {[%emt 0:00:33]} 14. Rb1 {[%emt 0:00:58]} Nc5 {[%emt 0:10:47]} (14... a5 $142) 15. Qc4 $16 {[%emt 0:01:09] Hoping for Rd1.} Be6 {[%emt 0:09:18]} 16. Nxe6 {[%emt 0:00:56]} Nxe6 {[%emt 0:00:13]} 17. b4 {[%emt 0:03:28] [#] aiming for Bb2.} Ke7 $2 {[%emt 0:04:09] This move loses the game for Black.} (17... Nd4 $16) 18. b5 $18 {[%emt 0:05:02]} Rac8 {[%emt 0:03:58]} (18... Qc3 $142 19. Qa4 a6) 19. bxc6 {[%emt 0:01:17] White is clearly winning.} bxc6 {[%emt 0:00:04]} 20. Ba3+ {[%emt 0:01:06] A strong pair of Bishops.} c5 {[%emt 0:00:09]} (20... Kf7 $142 21. Rfd1 (21. Bxc6 Rc7 $16) (21. Qb4 Rhd8 $16) 21... Rhd8 22. Rxd8 Rxd8 23. Bxc6 Rd2 24. Rb7+ Kg8) 21. Bb2 {[%emt 0:00:40]} Qc7 {[%emt 0:00:07]} 22. Bxg7 {[%emt 0:00:03]} Nxg7 {[%emt 0:00:01]} 23. Rb7 {[%emt 0:00:01] Weighted Error Value: White=0.32/Black=0.62} 1-0

[Event "Slovakia Open 2022"]
[Site "Bratislava"]
[Date "2022.09.30"]
[Round "3.8"]
[White "Zetocha, Adrian"]
[Black "Kukelko, Alexey"]
[Result "0-1"]
[ECO "E56"]
[WhiteElo "2205"]
[BlackElo "2280"]
[Annotator "TA"]
[PlyCount "156"]
[EventDate "2022.09.30"]
[EventCountry "SVK"]
[SourceTitle "playchess.com"]
[Source "ChessBase"]
[SourceQuality "1"]
[TimeControl "2700+10"]

{[%evp 19,156,24,10,21,27,14,6,-10,-10,-10,-14,-10,-18,-14,0,0,0,-16,-3,-21,-8,0,12,0,0,-25,0,0,0,0,0,-8,0,0,-3,-17,-10,-19,-19,-33,-35,-40,-40,-34,-26,-30,-33,-70,-32,-37,-20,-9,-8,-23,-10,-83,-85,-152,-152,-144,-149,-149,-143,-144,-91,-82,-90,-100,-96,-90,-90,-172,-92,-251,-229,-199,-147,-222,-219,-258,-247,-231,-223,-204,-202,-232,-225,-263,-108,-108,-108,-109,-68,-187,-186,-187,-186,-187,-187,-187,-187,-996,-517,-501,-172,-168,-141,-135,-52,-230,-133,-133,0,-482,-133,-133,-133,-149,-68,-72,0,-149,-141,-149,0,-149,-149,-149,-149,-29985,-29986,-29986,-29987,-29987,-29988,-29990,-29991,-29991,-29992]} 1. d4 {[%emt 0:00:44]} Nf6 {[%emt 0:00:07]} 2. c4 {[%emt 0:00:13]} e6 {[%emt 0:00:11]} 3. Nc3 {[%emt 0:00:23]} Bb4 {[%emt 0:00:00]} 4. e3 {[%emt 0:00:14]} O-O {[%emt 0:00:00]} 5. Bd3 {[%emt 0:00:15]} d5 {[%emt 0:00:01]} 6. Nf3 {[%emt 0:01:13]} c5 {[%emt 0:00:07]} 7. O-O {[%emt 0:00:05]} Nc6 {[%emt 0:00:15]} 8. cxd5 {[%emt 0:00:55]} exd5 {[%emt 0:00:03]} 9. dxc5 {[%emt 0:00:56]} Bxc5 {[%emt 0:02:11]} 10. b3 {[%emt 0:01:28]} Bg4 $1 {[%emt 0:02:54] 10...Bg4 is better than 10...Qe7.} 11. Bb2 {[%emt 0:00:12] E56: Nimzo-Indian: Rubinstein: Main Line: 7...Nc6.} a6 {[%emt 0:03:54] 11...Qe7 is not played anymore.} 12. Rc1 {[%emt 0:02:21]} Qd6 {[%emt 0:01:16] [#]} 13. Ne2 $146 {[%emt 0:06:43] The position is equal.} ({Predecessor:} 13. h3 Bh5 14. Be2 Rad8 15. Nh4 Bg6 16. Nxg6 hxg6 17. Bf3 Ba7 18. Ne2 Rfe8 19. Nd4 {0-1 (45) Peralta,F (2571)-Mareco,S (2648) Villa Martelli 2017}) 13... Bxf3 {[%emt 0:01:20]} 14. gxf3 {[%emt 0:00:03]} Ba3 {[%emt 0:00:16]} 15. Bxa3 {[%emt 0:01:09]} Qxa3 {[%emt 0:00:02]} 16. Bb1 {[%emt 0:00:14]} Rac8 {[%emt 0:04:42]} 17. Qd2 {[%emt 0:01:54]} g6 {[%emt 0:00:54]} 18. Rcd1 {[%emt 0:05:17]} Rc7 {[%emt 0:05:31]} 19. Kh1 {[%emt 0:01:01]} Rfc8 {[%emt 0:02:44]} 20. Rg1 {[%emt 0:00:38]} Qb4 {[%emt 0:06:53]} 21. Qb2 {[%emt 0:00:09]} Qe7 {[%emt 0:00:20]} 22. Rg5 {[%emt 0:06:52]} Ne4 {[%emt 0:04:04]} 23. Rg2 {[%emt 0:00:03]} Nf6 {[%emt 0:00:01]} 24. f4 {[%emt 0:01:30]} Rd8 {[%emt 0:00:31][%cal Od5d4]} 25. Nd4 {[%emt 0:03:29]} Nxd4 {[%emt 0:02:37]} 26. Qxd4 {[%emt 0:00:03]} Rdc8 {[%emt 0:00:09]} 27. Bf5 {[%emt 0:06:01]} Re8 {[%emt 0:00:10]} 28. Rdg1 {[%emt 0:02:12]} Rc6 {[%emt 0:01:21]} 29. Bd3 {[%emt 0:01:04]} Qc5 {[%emt 0:01:00]} 30. Qxc5 {[%emt 0:02:01]} Rxc5 {[%emt 0:00:11]} 31. f5 {[%emt 0:00:16]} Kf8 {[%emt 0:01:18]} 32. fxg6 {[%emt 0:00:03]} hxg6 {[%emt 0:00:11]} 33. Rg5 {[%emt 0:00:22]} Rc6 {[%emt 0:02:13]} 34. Rd1 {[%emt 0:00:06]} d4 {[%emt 0:01:02]} 35. exd4 {[%emt 0:00:07]} Rd6 {[%emt 0:00:01]} 36. d5 {[%emt 0:00:20]} Red8 {[%emt 0:01:12]} 37. Bc4 {[%emt 0:00:25]} (37. h4 $11 {remains equal.}) 37... b5 $17 {[%emt 0:00:19]} 38. Bf1 {[%emt 0:00:13]} ({Better is} 38. Bd3) 38... Ne4 {[%emt 0:00:15]} ({Inferior is} 38... Rxd5 39. Rgxd5 Rxd5 40. Rxd5 Nxd5 41. a4 $11) ({And not} 38... Nxd5 39. a4 $15) 39. Rg2 {[%emt 0:00:02]} Rxd5 {[%emt 0:00:10]} 40. Rxd5 {[%emt 0:00:07]} Rxd5 {[%emt 0:00:00][%mdl 4096] Endgame KRB-KRN} 41. f3 {[%emt 0:00:22]} Nd2 {[%emt 0:00:49]} (41... Rd1 $142 42. Kg1 Nc3) 42. Be2 {[%emt 0:00:11]} Nb1 {[%emt 0:00:24]} 43. a4 {[%emt 0:00:07]} Nc3 {[%emt 0:00:26]} 44. axb5 {[%emt 0:00:03]} axb5 {[%emt 0:00:10]} ({Much weaker is} 44... Nxe2 $6 45. Rxe2 axb5 46. Re3 $11) 45. f4 {[%emt 0:00:20]} (45. Kg1 $17 {is a better defense.}) 45... Rd4 {[%emt 0:00:00]} (45... Rf5 $19 46. Bd3 Rxf4) 46. Kg1 $2 {[%emt 0:00:12]} (46. f5 $17) 46... Rxf4 {[%emt 0:00:03]} 47. Bf1 {[%emt 0:00:03]} Ke7 {[%emt 0:00:26]} (47... Rb4 $19 48. Rb2 f5) 48. Rc2 {[%emt 0:00:08]} (48. Rg5 $17) 48... b4 $19 {[%emt 0:00:12]} 49. Bc4 {[%emt 0:00:01]} g5 {[%emt 0:00:09]} 50. Kg2 {[%emt 0:00:02]} Ne4 {[%emt 0:00:02]} 51. Ra2 {[%emt 0:00:10]} Nd6 {[%emt 0:00:02]} 52. Ra7+ {[%emt 0:00:08]} Kf6 $1 {[%emt 0:00:01]} 53. Ra6 {[%emt 0:00:13]} Rd4 {[%emt 0:00:25]} (53... Ke5 $19 {has better winning chances.} 54. Ra5+ Ke4) 54. Rb6 $17 {[%emt 0:00:03]} Ke5 {[%emt 0:00:11]} 55. Rxb4 {[%emt 0:00:05]} Kf4 {[%emt 0:00:10]} 56. Rb6 {[%emt 0:00:26]} (56. Ra4 $1 $15) 56... Rd2+ $19 {[%emt 0:00:00]} 57. Kg1 {[%emt 0:00:07][%cal Oc4f7]} f5 {[%emt 0:00:00]} 58. Bf1 {[%emt 0:00:18]} g4 {[%emt 0:00:12]} 59. Ra6 {[%emt 0:00:16]} Ne4 {[%emt 0:00:22]} 60. Ra4 $2 {[%emt 0:00:04]} (60. Ra1) 60... Ke3 {[%emt 0:00:19]} 61. b4 {[%emt 0:00:06]} Ng5 $2 {[%emt 0:00:11]} (61... Rd1 {aiming for ...Nd2.} 62. Ra3+ Kd4) 62. Ra3+ {[%emt 0:00:17]} Kd4 {[%emt 0:00:12] ...Nf3+ is the strong threat.} 63. Bg2 {[%emt 0:00:00] Prevents Nf3+.} f4 {[%emt 0:00:13]} (63... Ne4 $17 {And now ...Rd1+ would win.} 64. Ra1 Rb2) 64. Ra5 $2 {[%emt 0:00:14]} ({White should try} 64. Ra8 $15) 64... Rd1+ {[%emt 0:00:13]} ({Black should play} 64... f3 $1 $19 65. Bf1 Ne6) 65. Kf2 $17 {[%emt 0:00:07] [#] Strongly threatening Rd5+.} Rd2+ $2 {[%emt 0:00:02][%mdl 8192]} (65... Ne4+ $1 $17 66. Bxe4 Kxe4) 66. Kg1 $1 $19 {[%emt 0:00:19] [#]} Ne4 $2 {[%emt 0:00:06]} (66... f3 $1 $19 {( -> ...Rd1+)} 67. Bf1 Ne6) 67. Bxe4 $17 {[%emt 0:00:08]} Kxe4 {[%emt 0:00:00] KR-KR} 68. b5 {[%emt 0:00:12]} Rd1+ {[%emt 0:00:24]} (68... Rb2 $17 69. Ra4+ Kf3 70. Ra3+ Ke2) 69. Kf2 $1 $15 {[%emt 0:00:01]} Rd2+ {[%emt 0:00:02]} (69... Rb1 $142 70. Ra4+ Ke5) 70. Kg1 $17 {[%emt 0:00:05]} Rd3 {[%emt 0:00:01] White must now prevent ...Rd1+.} 71. Kf2 {[%emt 0:00:20]} Rd2+ {[%emt 0:00:06]} 72. Kg1 {[%emt 0:00:01]} Rb2 {[%emt 0:00:02]} 73. Ra4+ {[%emt 0:00:09]} Ke3 {[%emt 0:00:19] Black is much more active.} 74. h3 $2 {[%emt 0:00:33][%mdl 8192]} (74. Ra1 $17) 74... Rb1+ {[%emt 0:00:29] Black mates.} 75. Kg2 {[%emt 0:00:10]} f3+ {[%emt 0:00:13][%cal Bf4f3,Bf3f2][%mdl 32]} 76. Kg3 {[%emt 0:00:15]} Rg1+ {[%emt 0:00:05]} 77. Kh2 {[%emt 0:00:00]} f2 {[%emt 0:00:07][%csl Gg1][%cal Rg4g3]} 78. Ra3+ {[%emt 0:00:12]} Kd4 {[%emt 0:00:03] Weighted Error Value: White=0.32/Black=0.21 (precise)} 0-1